fUST/lending_fUST_20250502
["ID","MTS","AMOUNT","RATE_DAILY","PERIOD"]
[359612665,1746183048290,-1953.71,0.00019452,2]
[359612667,1746183048300,-400.0,0.00019452,2]
[359612669,1746183048310,-689.0,0.00019452,2]
[359612671,1746183048320,-151.0,0.00019452,2]
[359612673,1746183048330,-400.0,0.00019452,2]
[359612675,1746183048340,-400.0,0.00019452,2]
[359612677,1746183048350,-500.0,0.00019452,2]
[359612679,1746183048361,-1864.86,0.00019452,2]
[359612681,1746183048371,-500.0,0.00019452,2]
[359612683,1746183048380,-400.0,0.00019452,2]
[359612685,1746183048390,-2646.95,0.00019452,2]
[359612687,1746183048399,-151.0,0.00019452,2]
[359612689,1746183048408,-400.0,0.00019452,2]
[359612691,1746183048419,-400.0,0.00019452,2]
[359612693,1746183048429,-400.0,0.00019452,2]
[359612695,1746183048439,-223.63812799,0.00019452,2]
[359612697,1746183048449,-400.0,0.00019452,2]
[359612699,1746183048458,-500.0,0.00019452,2]
[359612701,1746183048468,-8810.17,0.00019452,2]
[359612705,1746183048531,-400.0,0.00019452,2]
[359612706,1746183048541,-400.0,0.00019452,2]
[359612707,1746183048551,-245.66145855,0.00019452,2]
[359612708,1746183048560,-400.0,0.00019452,2]
[359612709,1746183048569,-500.0,0.00019452,2]
[359612710,1746183048578,-400.0,0.00019452,2]
[359612711,1746183048587,-400.0,0.00019452,2]
[359612712,1746183048596,-898.1,0.00019452,2]
[359612713,1746183048605,-6700.34,0.00019452,2]
[359612714,1746183048615,-151.0,0.00019452,2]
[359612715,1746183048625,-400.0,0.00019452,2]
[359612716,1746183048634,-278.66457035,0.00019452,2]
[359612717,1746183048643,-453.13,0.00019452,2]
[359612718,1746183048654,-400.0,0.00019452,2]
[359612719,1746183048664,-151.0,0.00019452,2]
[359612720,1746183048673,-603.22,0.00019452,2]
[359612721,1746183048683,-400.0,0.00019452,2]
[359612722,1746183048693,-400.0,0.00019452,2]
[359612723,1746183048702,-500.0,0.00019452,2]
[359612724,1746183048712,-400.0,0.00019452,2]
[359612725,1746183048721,-400.0,0.00019452,2]
[359612726,1746183048731,-400.0,0.00019452,2]
[359612727,1746183048740,-151.09706879,0.00019452,2]
[359612728,1746183048750,-1346.02,0.00019452,2]
[359612729,1746183048760,-400.0,0.00019452,2]
[359612730,1746183048769,-500.0,0.00019452,2]
[359612731,1746183048779,-400.0,0.00019452,2]
[359612732,1746183048788,-2087.0,0.00019452,2]
[359612733,1746183048798,-500.0,0.00019452,2]
[359612734,1746183048808,-500.0,0.00019452,2]
[359612735,1746183048818,-936.5,0.00019452,2]
[359612736,1746183048829,-673.98,0.00019452,2]
[359612737,1746183048839,-165.44786822,0.00019452,2]
[359612738,1746183048848,-3151.4,0.00019452,2]
[359612739,1746183048858,-400.0,0.00019452,2]
[359612740,1746183048868,-500.0,0.00019452,2]
[359612741,1746183048878,-400.0,0.00019452,2]
[359612742,1746183048888,-500.0,0.00019452,2]
[359612743,1746183048897,-3311.51,0.00019452,2]
[359612744,1746183048907,-2167.32,0.00019452,2]
[359612745,1746183048916,-400.0,0.00019452,2]
[359612746,1746183048925,-400.0,0.00019452,2]
[359612747,1746183048935,-808.22,0.00019452,2]
[359612748,1746183048945,-400.0,0.00019452,2]
[359612749,1746183048954,-771.6,0.00019452,2]
[359612750,1746183048964,-400.0,0.00019452,2]
[359612751,1746183048972,-500.0,0.00019452,2]
[359612752,1746183048982,-400.0,0.00019452,2]
[359612753,1746183048992,-1138.61,0.00019452,2]
[359612754,1746183049002,-486.46,0.00019452,2]
[359612755,1746183049011,-401.65,0.00019452,2]
[359612756,1746183049020,-400.0,0.00019452,2]
[359612757,1746183049030,-894.63,0.00019452,2]
[359612758,1746183049039,-241.28086379,0.00019452,2]
[359612759,1746183049048,-400.0,0.00019452,2]
[359612760,1746183049058,-2762.65,0.00019452,2]
[359612761,1746183049067,-400.0,0.00019452,2]
[359612762,1746183049077,-400.0,0.00019452,2]
[359612763,1746183049086,-400.0,0.00019452,2]
[359612764,1746183049096,-400.0,0.00019452,2]
[359612765,1746183049105,-400.0,0.00019452,2]
[359612766,1746183049115,-473.08,0.00019452,2]
[359612767,1746183049124,-400.0,0.00019452,2]
[359612768,1746183049133,-400.0,0.00019452,2]
[359612769,1746183049143,-920.64,0.00019452,2]
[359612771,1746183049153,-1996.74,0.00019452,2]
[359612773,1746183049163,-509.25,0.00019452,2]
[359612775,1746183049172,-400.0,0.00019452,2]
[359612777,1746183049181,-400.0,0.00019452,2]
[359612779,1746183049191,-438.68,0.00019452,2]
[359612780,1746183049200,-645.3,0.00019452,2]
[359612782,1746183049210,-535.78370078,0.00019452,2]
[359612783,1746183049220,-400.0,0.00019452,2]
[359612784,1746183049230,-400.0,0.00019452,2]
[359612785,1746183049240,-400.0,0.00019452,2]
[359612787,1746183049249,-747.82,0.00019452,2]
[359612789,1746183049258,-520.12,0.00019452,2]
[359612790,1746183049267,-3565.25,0.00019452,2]
[359612792,1746183049277,-400.0,0.00019452,2]
[359612794,1746183049287,-7782.0,0.00019452,2]
[359612795,1746183049298,-400.0,0.00019452,2]
[359612796,1746183049308,-400.0,0.00019452,2]
[359612797,1746183049318,-6879.56,0.00019452,2]
[359612798,1746183049328,-2369.16,0.00019452,2]
[359612799,1746183049341,-1354.57,0.00019452,2]
[359612800,1746183049351,-400.0,0.00019452,2]
[359612801,1746183049361,-2800.74,0.00019452,2]
[359612802,1746183049371,-400.0,0.00019452,2]
[359612803,1746183049381,-400.0,0.00019452,2]
[359612804,1746183049392,-437.3,0.00019452,2]
[359612805,1746183049402,-818.26,0.00019452,2]
[359612806,1746183049413,-400.0,0.00019452,2]
[359612807,1746183049422,-400.0,0.00019452,2]
[359612808,1746183049432,-468.81,0.00019452,2]
[359612809,1746183049442,-400.0,0.00019452,2]
[359612810,1746183049453,-400.0,0.00019452,2]
[359612811,1746183049465,-4229.74,0.00019452,2]
[359612812,1746183049477,-1571.98,0.00019452,2]
[359612813,1746183049488,-477.55,0.00019452,2]
[359612814,1746183049498,-400.0,0.00019452,2]
[359612815,1746183049508,-3453.3,0.00019452,2]
[359612816,1746183049519,-400.0,0.00019452,2]
[359612817,1746183049529,-400.0,0.00019452,2]
[359612818,1746183049539,-669.26,0.00019452,2]
[359612819,1746183049549,-188.46223107,0.00019452,2]
[359612820,1746183049560,-460.49,0.00019452,2]
[359612821,1746183049570,-400.0,0.00019452,2]
[359612822,1746183049582,-400.0,0.00019452,2]
[359612823,1746183049593,-400.0,0.00019452,2]
[359612824,1746183049603,-400.0,0.00019452,2]
[359612825,1746183049613,-400.0,0.00019452,2]
[359612826,1746183049624,-400.0,0.00019452,2]
[359612827,1746183049634,-1304.73,0.00019452,2]
[359612828,1746183049644,-400.0,0.00019452,2]
[359612829,1746183049657,-400.0,0.00019452,2]
[359612830,1746183049667,-400.0,0.00019452,2]
[359612831,1746183049676,-543.48,0.00019452,2]
[359612832,1746183049687,-400.0,0.00019452,2]
[359612833,1746183049697,-862.1,0.00019452,2]
[359612834,1746183049707,-928.47,0.00019452,2]
[359612835,1746183049716,-400.0,0.00019452,2]
[359612836,1746183049727,-400.0,0.00019452,2]
[359612837,1746183049737,-728.73,0.00019452,2]
[359612838,1746183049750,-598.62,0.00019452,2]
[359612839,1746183049760,-400.0,0.00019452,2]
[359612840,1746183049770,-402.89,0.00019452,2]
[359612841,1746183049780,-400.0,0.00019452,2]
[359612842,1746183049791,-400.0,0.00019452,2]
[359612843,1746183049801,-400.0,0.00019452,2]
[359612844,1746183049811,-910.75,0.00019452,2]
[359612845,1746183049821,-400.0,0.00019452,2]
[359612846,1746183049832,-400.0,0.00019452,2]
[359612847,1746183049842,-870.32,0.00019452,2]
[359612848,1746183049853,-716.52,0.00019452,2]
[359612849,1746183049863,-3287.4,0.00019452,2]
[359612850,1746183049873,-470.89,0.00019452,2]
[359612851,1746183049884,-400.0,0.00019452,2]
[359612852,1746183049895,-3155.16,0.00019452,2]
[359612853,1746183049904,-400.0,0.00019452,2]
[359612854,1746183049914,-1704.98,0.00019452,2]
[359612855,1746183049926,-466.13297625,0.00019452,2]
[359612856,1746183049937,-431.40236022,0.00019452,2]
[359612857,1746183049947,-400.0,0.00019452,2]
[359612858,1746183049958,-2043.96,0.00019452,2]
[359612859,1746183049970,-400.0,0.00019452,2]
[359612860,1746183049981,-400.0,0.00019452,2]
[359612861,1746183049991,-296.6617323,0.00019452,2]
[359612862,1746183050002,-425.35,0.00019452,2]
[359612863,1746183050013,-448.38,0.00019452,2]
[359612864,1746183050024,-400.0,0.00019452,2]
[359612865,1746183050035,-225.32013137,0.00019452,2]
[359612866,1746183050046,-400.0,0.00019452,2]
[359612867,1746183050057,-1121.74,0.00019452,2]
[359612868,1746183050067,-400.0,0.00019452,2]
[359612869,1746183050077,-3401.5,0.00019452,2]
[359612870,1746183050088,-1007.29,0.00019452,2]
[359612871,1746183050100,-400.0,0.00019452,2]
[359612872,1746183050110,-400.0,0.00019452,2]
[359612873,1746183050121,-820.89,0.00019452,2]
[359612874,1746183050130,-400.0,0.00019452,2]
[359612875,1746183050140,-1578.6,0.00019452,2]
[359612876,1746183050151,-400.0,0.00019452,2]
[359612877,1746183050161,-400.0,0.00019452,2]
[359612878,1746183050171,-2074.52,0.00019452,2]
[359612879,1746183050181,-400.0,0.00019452,2]
[359612880,1746183050192,-1177.16,0.00019452,2]
[359612881,1746183050203,-400.0,0.00019452,2]
[359612882,1746183050213,-400.0,0.00019452,2]
[359612883,1746183050223,-400.0,0.00019452,2]
[359612884,1746183050232,-400.0,0.00019452,2]
[359612885,1746183050242,-400.0,0.00019452,2]
[359612886,1746183050253,-400.0,0.00019452,2]
[359612887,1746183050263,-400.0,0.00019452,2]
[359612888,1746183050273,-3666.62,0.00019452,2]
[359612889,1746183050283,-400.0,0.00019452,2]
[359612890,1746183050293,-400.0,0.00019452,2]
[359612891,1746183050303,-3739.76,0.00019452,2]
[359612892,1746183050313,-400.0,0.00019452,2]
[359612893,1746183050323,-400.0,0.00019452,2]
[359612894,1746183050334,-2942.57,0.00019452,2]
[359612895,1746183050345,-965.4,0.00019452,2]
[359612896,1746183050356,-400.0,0.00019452,2]
[359612897,1746183050366,-400.0,0.00019452,2]
[359612898,1746183050377,-535.95,0.00019452,2]
[359612899,1746183050388,-400.0,0.00019452,2]
[359612900,1746183050397,-224.09456063,0.00019452,2]
[359612901,1746183050408,-400.0,0.00019452,2]
[359612902,1746183050420,-582.3,0.00019452,2]
[359612903,1746183050430,-400.0,0.00019452,2]
[359612904,1746183050440,-1101.42,0.00019452,2]
[359612905,1746183050450,-500.0,0.00019452,2]
[359612906,1746183050460,-400.0,0.00019452,2]
[359612907,1746183050470,-400.0,0.00019452,2]
[359612908,1746183050480,-400.0,0.00019452,2]
[359612909,1746183050490,-529.87,0.00019452,2]
[359612910,1746183050500,-400.0,0.00019452,2]
[359612911,1746183050511,-928.92,0.00019452,2]
[359612912,1746183050522,-2863.74,0.00019452,2]
[359612913,1746183050532,-400.0,0.00019452,2]
[359612914,1746183050544,-400.0,0.00019452,2]
[359612915,1746183050554,-733.5,0.00019452,2]
[359612916,1746183050565,-427.44883147,0.00019452,2]
[359612917,1746183050576,-400.0,0.00019452,2]
[359612918,1746183050588,-400.0,0.00019452,2]
[359612919,1746183050599,-2339.15,0.00019452,2]
[359612920,1746183050610,-400.0,0.00019452,2]
[359612921,1746183050621,-400.0,0.00019452,2]
[359612922,1746183050631,-400.0,0.00019452,2]
[359612923,1746183050641,-400.0,0.00019452,2]
[359612924,1746183050656,-1054.81,0.00019452,2]
[359612925,1746183050667,-400.0,0.00019452,2]
[359612926,1746183050677,-400.0,0.00019452,2]
[359612927,1746183050688,-501.99,0.00019452,2]
[359612928,1746183050699,-400.0,0.00019452,2]
[359612929,1746183050709,-400.0,0.00019452,2]
[359612930,1746183050721,-400.0,0.00019452,2]
[359612931,1746183050733,-400.0,0.00019452,2]
[359612932,1746183050745,-400.0,0.00019452,2]
[359612933,1746183050756,-400.0,0.00019452,2]
[359612934,1746183050766,-210.82817571,0.00019452,2]
[359612935,1746183050777,-400.63,0.00019452,2]
[359612936,1746183050789,-780.32,0.00019452,2]
[359612937,1746183050799,-412.27,0.00019452,2]
[359612938,1746183050810,-400.0,0.00019452,2]
[359612939,1746183050819,-2385.64,0.00019452,2]
[359612940,1746183050830,-3812.54,0.00019452,2]
[359612941,1746183050841,-400.0,0.00019452,2]
[359612942,1746183050850,-400.0,0.00019452,2]
[359612943,1746183050860,-400.0,0.00019452,2]
[359612944,1746183050871,-400.0,0.00019452,2]
[359612945,1746183050881,-1423.16,0.00019452,2]
[359612946,1746183050891,-400.0,0.00019452,2]
[359612947,1746183050902,-743.44,0.00019452,2]
[359612948,1746183050912,-432.4,0.00019452,2]
[359612949,1746183050922,-716.51,0.00019452,2]
[359612950,1746183050932,-836.53,0.00019452,2]
[359612951,1746183050943,-400.0,0.00019452,2]
[359612952,1746183050953,-400.0,0.00019452,2]
[359612953,1746183050964,-400.0,0.00019452,2]
[359612954,1746183050974,-1148.43,0.00019452,2]
[359612955,1746183050985,-572.44,0.00019452,2]
[359612956,1746183050995,-400.0,0.00019452,2]
[359612957,1746183051005,-400.0,0.00019452,2]
[359612958,1746183051016,-400.0,0.00019452,2]
[359612959,1746183051026,-400.0,0.00019452,2]
[359612960,1746183051036,-751.54,0.00019452,2]
[359612961,1746183051047,-19129.06,0.00019452,2]
[359612962,1746183051056,-400.0,0.00019452,2]
[359612963,1746183051067,-8624.66,0.00019452,2]
[359612964,1746183051077,-1111.57,0.00019452,2]
[359612965,1746183051087,-400.0,0.00019452,2]
[359612966,1746183051098,-400.0,0.00019452,2]
[359612967,1746183051109,-1674.79,0.00019452,2]
[359612968,1746183051119,-476.2,0.00019452,2]
[359612969,1746183051129,-160.0,0.00019452,2]
[359612970,1746183051139,-160.0,0.00019452,2]
[359612971,1746183051149,-500.0,0.00019473,2]
[359612972,1746183051159,-500.0,0.00019473,2]
[359612973,1746183051169,-315.37114601,0.00019473,2]
[359612974,1746183051179,-500.0,0.00019473,2]
[359612975,1746183051189,-11819.25255129,0.00019569,3]
[359612976,1746183051198,-182.12647014,0.00019569,3]
[359612977,1746183051208,-12598.98820072,0.00019569,3]
[359612978,1746183051217,-12392.1457578,0.0001957,3]
[359612979,1746183051227,-841.31989156,0.0001957,3]
[359612980,1746183051237,-2438.47137644,0.00019706,2]
[359612981,1746183051247,-182.12647014,0.00019726,3]
[359612982,1746183051257,-12598.98820072,0.00019726,3]
[359612983,1746183051267,-269.33180512,0.00019726,2]
[359612984,1746183051277,-500.0,0.00019726,2]
[359612985,1746183051287,-500.0,0.00019726,2]
[359612986,1746183051297,-301.34500089,0.00019726,2]
[359612987,1746183051307,-151.0,0.00019726,2]
[359612988,1746183051316,-151.0,0.00019726,2]
[359612989,1746183051327,-500.0,0.00019726,2]
[359612990,1746183051337,-500.0,0.00019726,2]
[359612991,1746183051346,-151.0,0.00019726,2]
[359612992,1746183051356,-500.0,0.00019726,2]
[359612993,1746183051365,-500.0,0.00019726,2]
[359612994,1746183051375,-151.0,0.00019726,2]
[359612995,1746183051385,-151.0,0.00019726,2]
[359612996,1746183051395,-500.0,0.00019726,2]
[359612997,1746183051405,-500.0,0.00019726,2]
[359612998,1746183051415,-500.0,0.00019726,2]
[359612999,1746183051424,-500.0,0.00019726,2]
[359613000,1746183051435,-500.0,0.00019726,2]
[359613001,1746183051445,-500.0,0.00019726,2]
[359613002,1746183051455,-1824.65,0.00019726,2]
[359613003,1746183051465,-200.0,0.00019726,2]
[359613004,1746183051475,-272.80388031,0.00019726,2]
[359613005,1746183051485,-1014.04,0.00019726,2]
[359613006,1746183051494,-677.52,0.00019726,2]
[359613007,1746183051504,-400.0,0.00019726,2]
[359613008,1746183051514,-400.0,0.00019726,2]
[359613009,1746183051523,-400.0,0.00019726,2]
[359613010,1746183051533,-400.0,0.00019726,2]
[359613011,1746183051544,-400.0,0.00019726,2]
[359613012,1746183051554,-237.68840072,0.00019726,2]
[359613013,1746183051563,-400.0,0.00019726,2]
[359613014,1746183051573,-400.0,0.00019726,2]
[359613015,1746183051582,-400.0,0.00019726,2]
[359613016,1746183051592,-400.0,0.00019726,2]
[359613017,1746183051603,-763.67,0.00019726,2]
[359613018,1746183051612,-400.0,0.00019726,2]
[359613019,1746183051622,-406.97,0.00019726,2]
[359613020,1746183051631,-400.0,0.00019726,2]
[359613021,1746183051640,-400.0,0.00019726,2]
[359613022,1746183051651,-400.0,0.00019726,2]
[359613023,1746183051665,-400.0,0.00019726,2]
[359613024,1746183051674,-400.0,0.00019726,2]
[359613025,1746183051686,-400.0,0.00019726,2]
[359613026,1746183051697,-400.0,0.00019726,2]
[359613027,1746183051709,-400.0,0.00019726,2]
[359613028,1746183051719,-400.0,0.00019726,2]
[359613029,1746183051729,-400.0,0.00019726,2]
[359613030,1746183051740,-200.0,0.00019726,2]
[359613031,1746183051750,-400.0,0.00019726,2]
[359613032,1746183051759,-400.0,0.00019726,2]
[359613033,1746183051769,-330.32753946,0.00019726,2]
[359613034,1746183051778,-400.0,0.00019726,2]
[359613035,1746183051788,-521.51,0.00019726,2]
[359613036,1746183051797,-400.0,0.00019726,2]
[359613037,1746183051807,-400.0,0.00019726,2]
[359613038,1746183051817,-400.0,0.00019726,2]
[359613039,1746183051826,-427.0,0.00019726,2]
[359613040,1746183051836,-493.27,0.00019726,2]
[359613041,1746183051846,-381.09323596,0.00019726,2]
[359613042,1746183051856,-400.0,0.00019726,2]
[359613043,1746183051866,-302.5583881,0.00019726,2]
[359613044,1746183051876,-400.0,0.00019726,2]
[359613045,1746183051886,-400.0,0.00019726,2]
[359613046,1746183051896,-632.57,0.00019726,2]
[359613047,1746183051906,-400.0,0.00019726,2]
[359613048,1746183051915,-400.0,0.00019726,2]
[359613049,1746183051925,-400.0,0.00019726,2]
[359613050,1746183051935,-400.0,0.00019726,2]
[359613051,1746183051945,-400.0,0.00019726,2]
[359613052,1746183051954,-160.00893222,0.00019726,2]
[359613053,1746183051964,-400.0,0.00019726,2]
[359613054,1746183051975,-400.0,0.00019726,2]
[359613055,1746183051984,-400.0,0.00019726,2]
[359613056,1746183051995,-400.0,0.00019726,2]
[359613057,1746183052007,-400.0,0.00019726,2]
[359613058,1746183052019,-400.0,0.00019726,2]
[359613059,1746183052030,-400.0,0.00019726,2]
[359613060,1746183052041,-466.18229397,0.00019726,2]
[359613061,1746183052051,-400.0,0.00019726,2]
[359613062,1746183052061,-564.26,0.00019726,2]
[359613063,1746183052070,-400.0,0.00019726,2]
[359613064,1746183052080,-400.0,0.00019726,2]
[359613065,1746183052091,-400.0,0.00019726,2]
[359613066,1746183052101,-400.0,0.00019726,2]
[359613067,1746183052111,-211.2960862,0.00019726,2]
[359613068,1746183052120,-400.0,0.00019726,2]
[359613069,1746183052130,-400.0,0.00019726,2]
[359613070,1746183052140,-607.5,0.00019726,2]
[359613071,1746183052150,-400.0,0.00019726,2]
[359613072,1746183052160,-457.54,0.00019726,2]
[359613073,1746183052170,-400.0,0.00019726,2]
[359613074,1746183052179,-204.94740005,0.00019726,2]
[359613075,1746183052189,-400.0,0.00019726,2]
[359613076,1746183052200,-778.06,0.00019726,2]
[359613077,1746183052209,-400.0,0.00019726,2]
[359613078,1746183052219,-400.0,0.00019726,2]
[359613079,1746183052229,-314.3571656,0.00019726,2]
[359613080,1746183052239,-487.41,0.00019726,2]
[359613081,1746183052248,-400.0,0.00019726,2]
[359613082,1746183052258,-400.0,0.00019726,2]
[359613083,1746183052267,-1747.69,0.00019726,2]
[359613084,1746183052277,-163.35593647,0.00019726,2]
[359613085,1746183052286,-909.75,0.00019726,2]
[359613086,1746183052296,-416.34,0.00019726,2]
[359613087,1746183052306,-400.0,0.00019726,2]
[359613088,1746183052316,-773.46,0.00019726,2]
[359613089,1746183052325,-400.0,0.00019726,2]
[359613090,1746183052335,-637.37,0.00019726,2]
[359613091,1746183052345,-717.98,0.00019726,2]
[359613092,1746183052355,-400.0,0.00019726,2]
[359613093,1746183052365,-716.83,0.00019726,2]
[359613094,1746183052374,-3807.1,0.00019726,2]
[359613095,1746183052384,-400.0,0.00019726,2]
[359613096,1746183052394,-400.0,0.00019726,2]
[359613097,1746183052404,-216.54283059,0.00019726,2]
[359613098,1746183052414,-400.0,0.00019726,2]
[359613099,1746183052424,-765.28,0.00019726,2]
[359613100,1746183052434,-889.61,0.00019726,2]
[359613101,1746183052443,-400.0,0.00019726,2]
[359613102,1746183052453,-400.0,0.00019726,2]
[359613103,1746183052463,-400.0,0.00019726,2]
[359613104,1746183052474,-400.0,0.00019726,2]
[359613105,1746183052485,-938.25,0.00019726,2]
[359613106,1746183052496,-400.0,0.00019726,2]
[359613107,1746183052505,-400.0,0.00019726,2]
[359613108,1746183052515,-400.0,0.00019726,2]
[359613109,1746183052525,-406.81207895,0.00019726,2]
[359613110,1746183052535,-748.24,0.00019726,2]
[359613111,1746183052545,-400.0,0.00019726,2]
[359613112,1746183052555,-400.0,0.00019726,2]
[359613113,1746183052565,-541.40260309,0.00019726,2]
[359613114,1746183052575,-400.0,0.00019726,2]
[359613115,1746183052585,-2479.24,0.00019726,2]
[359613116,1746183052595,-400.0,0.00019726,2]
[359613117,1746183052605,-400.0,0.00019726,2]
[359613118,1746183052615,-400.0,0.00019726,2]
[359613119,1746183052626,-400.0,0.00019726,2]
[359613120,1746183052636,-400.0,0.00019726,2]
[359613121,1746183052647,-400.0,0.00019726,2]
[359613122,1746183052661,-400.0,0.00019726,2]
[359613123,1746183052672,-400.0,0.00019726,2]
[359613124,1746183052681,-984.73,0.00019726,2]
[359613125,1746183052691,-400.0,0.00019726,2]
[359613126,1746183052701,-400.0,0.00019726,2]
[359613127,1746183052711,-528.82061043,0.00019726,2]
[359613128,1746183052721,-410.06,0.00019726,2]
[359613129,1746183052731,-400.0,0.00019726,2]
[359613130,1746183052742,-1541.8,0.00019726,2]
[359613131,1746183052753,-407.3374092,0.00019726,2]
[359613132,1746183052763,-400.0,0.00019726,2]
[359613133,1746183052940,-468.71,0.00019726,2]
[359613134,1746183052951,-476.9,0.00019726,2]
[359613135,1746183052961,-400.0,0.00019726,2]
[359613136,1746183052970,-400.0,0.00019726,2]
[359613137,1746183052980,-1350.97,0.00019726,2]
[359613138,1746183052989,-400.0,0.00019726,2]
[359613139,1746183052999,-243.82300227,0.00019726,2]
[359613140,1746183053008,-538.90434163,0.00019726,2]
[359613141,1746183053018,-400.0,0.00019726,2]
[359613142,1746183053027,-1397.66,0.00019726,2]
[359613143,1746183053036,-1957.82,0.00019726,2]
[359613144,1746183053046,-535.13904225,0.00019726,2]
[359613145,1746183053056,-400.0,0.00019726,2]
[359613146,1746183053065,-400.0,0.00019726,2]
[359613147,1746183053075,-404.01766485,0.00019726,2]
[359613148,1746183053084,-400.0,0.00019726,2]
[359613149,1746183053094,-400.0,0.00019726,2]
[359613150,1746183053103,-982.86,0.00019726,2]
[359613151,1746183053113,-1186.77,0.00019726,2]
[359613152,1746183053122,-400.0,0.00019726,2]
[359613153,1746183053131,-526.9,0.00019726,2]
[359613154,1746183053141,-1086.28,0.00019726,2]
[359613155,1746183053150,-885.15,0.00019726,2]
[359613156,1746183053160,-523.86,0.00019726,2]
[359613157,1746183053169,-845.91,0.00019726,2]
[359613158,1746183053179,-151.0,0.00019726,2]
[359613159,1746183053190,-151.0,0.00019726,2]
[359613160,1746183053200,-151.0,0.00019726,2]
[359613161,1746183053210,-400.0,0.00019726,2]
[359613162,1746183053219,-1112.26,0.00019726,2]
[359613163,1746183053229,-400.0,0.00019726,2]
[359613164,1746183053238,-1093.25,0.00019726,2]
[359613165,1746183053248,-400.0,0.00019726,2]
[359613166,1746183053258,-426.77,0.00019726,2]
[359613167,1746183053268,-1496.91,0.00019726,2]
[359613168,1746183053278,-1305.21,0.00019726,2]
[359613169,1746183053288,-403.11,0.00019726,2]
[359613170,1746183053298,-400.0,0.00019726,2]
[359613171,1746183053307,-1042.87,0.00019726,2]
[359613172,1746183053317,-400.0,0.00019726,2]
[359613173,1746183053327,-623.82,0.00019726,2]
[359613174,1746183053337,-411.05,0.00019726,2]
[359613175,1746183053347,-400.0,0.00019726,2]
[359613176,1746183053357,-400.0,0.00019726,2]
[359613177,1746183053368,-432.09,0.00019726,2]
[359613178,1746183053378,-1547.11,0.00019726,2]
[359613179,1746183053388,-400.0,0.00019726,2]
[359613180,1746183053397,-400.0,0.00019726,2]
[359613181,1746183053407,-421.99448929,0.00019726,2]
[359613182,1746183053417,-775.86,0.00019726,2]
[359613183,1746183053426,-1000.0,0.00019726,2]
[359613184,1746183053436,-400.0,0.00019726,2]
[359613185,1746183053446,-285.28635609,0.00019726,2]
[359613186,1746183053456,-400.0,0.00019726,2]
[359613187,1746183053466,-400.0,0.00019726,2]
[359613188,1746183053477,-400.0,0.00019726,2]
[359613189,1746183053486,-400.0,0.00019726,2]
[359613190,1746183053496,-670.53,0.00019726,2]
[359613191,1746183053505,-400.0,0.00019726,2]
[359613192,1746183053515,-588.75,0.00019726,2]
[359613193,1746183053524,-400.0,0.00019726,2]
[359613194,1746183053534,-654.25,0.00019726,2]
[359613195,1746183053544,-424.91,0.00019726,2]